[Event "FIDE Women World Blitz 2021"]
[Site "Warsaw"]
[Date "2021.12.30"]
[Round "12.3"]
[White "Sliwicka, Alicja"]
[Black "Goraj, Barbara"]
[Result "1-0"]
[ECO "B20"]
[WhiteElo "2303"]
[BlackElo "1902"]
[Annotator "NA"]
[PlyCount "71"]
[EventDate "2021.12.29"]
[EventType "swiss"]
[EventCountry "POL"]
[Tiebreak "Cut1 Buchholz"]
[SourceTitle "playchess.com"]
[Source "ChessBase"]
[SourceQuality "1"]
[TimeControl "180+2"]

1. e4 {[%emt 0:00:01]} c5 {[%emt 0:00:00]} 2. Ne2 {[%emt 0:00:01]} Nc6 {
[%emt 0:00:02]} 3. c4 {[%emt 0:00:01]} e5 {[%emt 0:00:04]} 4. g3 {[%emt 0:00:
02]} g6 {[%emt 0:00:04]} 5. Bg2 {[%emt 0:00:01]} Bg7 {[%emt 0:00:01]} 6. O-O {
[%emt 0:00:01]} d6 {[%emt 0:00:01]} 7. d3 {[%emt 0:00:02]} Be6 {[%emt 0:00:02]}
8. Nbc3 {[%emt 0:00:01]} Nge7 {[%emt 0:00:02]} 9. Nd5 {[%emt 0:00:12]} h6 {
[%emt 0:00:22]} 10. a3 {[%emt 0:00:02]} Rb8 {[%emt 0:00:07]} 11. b4 {[%emt 0:
00:10]} Nd4 {[%emt 0:00:28]} 12. Nxd4 {[%emt 0:00:05]} exd4 {[%emt 0:00:16]}
13. f4 {[%emt 0:00:29]} Bxd5 {[%emt 0:00:02]} 14. cxd5 {[%emt 0:00:07]} f5 {
[%emt 0:00:33]} 15. bxc5 {[%emt 0:00:47]} fxe4 {[%emt 0:00:10]} 16. cxd6 {
[%emt 0:00:06]} Qxd6 {[%emt 0:00:28]} 17. dxe4 {[%emt 0:00:12]} O-O {[%emt 0:
00:09]} 18. Qd3 {[%emt 0:00:19]} Rbc8 {[%emt 0:00:10]} 19. e5 {[%emt 0:00:15]}
Qb6 {[%emt 0:00:29]} 20. Rb1 {[%emt 0:00:01]} Qc5 {[%emt 0:00:07]} 21. Bb2 {
[%emt 0:00:11]} Nxd5 {[%emt 0:00:03]} 22. Bxd4 {[%emt 0:00:02]} Qc6 {[%emt 0:
00:02]} 23. Bf2 {[%emt 0:00:14]} Rcd8 {[%emt 0:00:00]} 24. Rbd1 {[%emt 0:00:16]
} Kh7 {[%emt 0:00:04]} 25. Bxd5 {[%emt 0:00:02]} Qa4 {[%emt 0:00:01]} 26. Qb3 {
[%emt 0:00:03]} Qa5 {[%emt 0:00:01]} 27. Bf3 {[%emt 0:00:02]} Rc8 {[%emt 0:00:
00]} 28. Qb4 {[%emt 0:00:03]} Qa6 {[%emt 0:00:02]} 29. Rd7 {[%emt 0:00:03]} b6
{[%emt 0:00:05]} 30. Qe7 {[%emt 0:00:03]} Rg8 {[%emt 0:00:00]} 31. Bd5 {
[%emt 0:00:03]} Qa5 {[%emt 0:00:06]} 32. Bxg8+ {[%emt 0:00:03]} Rxg8 {[%emt 0:
00:00]} 33. Rd8 {[%emt 0:00:02]} Rxd8 {[%emt 0:00:02]} 34. Qxd8 {[%emt 0:00:01]
} Qxa3 {[%emt 0:00:01]} 35. e6 {[%emt 0:00:02]} Bf6 {[%emt 0:00:01]} 36. Qxf6 {
[%emt 0:00:02]} 1-0

[Event "FIDE Women World Blitz 2021"]
[Site "Warsaw"]
[Date "2021.12.30"]
[Round "12.3"]
[White "Buksa, Nataliya"]
[Black "Vaishali R"]
[Result "1-0"]
[ECO "D00"]
[WhiteElo "2199"]
[BlackElo "2405"]
[Annotator "NA"]
[PlyCount "85"]
[EventDate "2021.12.29"]
[EventType "swiss"]
[EventCountry "POL"]
[Tiebreak "Cut1 Buchholz"]
[SourceTitle "playchess.com"]
[Source "ChessBase"]
[SourceQuality "1"]
[TimeControl "180+2"]

1. d4 {[%emt 0:00:00]} Nf6 {[%emt 0:00:02]} 2. Nc3 {[%emt 0:00:01]} d5 {
[%emt 0:00:02]} 3. Bf4 {[%emt 0:00:01]} g6 {[%emt 0:00:01]} 4. e3 {[%emt 0:00:
01]} Bg7 {[%emt 0:00:01]} 5. h4 {[%emt 0:00:01]} O-O {[%emt 0:00:03]} 6. h5 {
[%emt 0:00:07]} c5 {[%emt 0:00:03]} 7. hxg6 {[%emt 0:00:10]} hxg6 {[%emt 0:00:
01]} 8. Nf3 {[%emt 0:00:02]} Nc6 {[%emt 0:00:31]} 9. Ne5 {[%emt 0:00:34]} cxd4
{[%emt 0:00:10]} 10. Nxc6 {[%emt 0:00:10]} bxc6 {[%emt 0:00:03]} 11. exd4 {
[%emt 0:00:02]} Ne4 {[%emt 0:00:17]} 12. Nxe4 {[%emt 0:00:18]} dxe4 {[%emt 0:
00:02]} 13. c3 {[%emt 0:00:01]} Qd5 {[%emt 0:00:44]} 14. Qd2 {[%emt 0:00:01]}
Rd8 {[%emt 0:00:05]} 15. Bh6 {[%emt 0:00:18]} Bf6 {[%emt 0:00:02]} 16. Be3 {
[%emt 0:00:01]} Rb8 {[%emt 0:00:05]} 17. b3 {[%emt 0:00:04]} Bg4 {[%emt 0:00:
13]} 18. Bc4 {[%emt 0:00:02]} Qf5 {[%emt 0:00:12]} 19. Be2 {[%emt 0:00:20]} c5
{[%emt 0:00:11]} 20. O-O-O {[%emt 0:00:31]} cxd4 {[%emt 0:00:08]} 21. cxd4 {
[%emt 0:00:08]} Bxe2 {[%emt 0:00:16]} 22. Qxe2 {[%emt 0:00:02]} a5 {[%emt 0:00:
07]} 23. g4 {[%emt 0:00:16]} Qd5 {[%emt 0:00:03]} 24. g5 {[%emt 0:00:06]} Bxg5
{[%emt 0:00:03]} 25. Qg4 {[%emt 0:00:08]} Rdc8+ {[%emt 0:00:18]} 26. Kb2 {
[%emt 0:00:02]} Bxe3 {[%emt 0:00:02]} 27. fxe3 {[%emt 0:00:02]} Qe6 {[%emt 0:
00:07]} 28. Qh4 {[%emt 0:00:08]} Qf6 {[%emt 0:00:01]} 29. Qh2 {[%emt 0:00:12]}
Qg7 {[%emt 0:00:02]} 30. Qf4 {[%emt 0:00:04]} a4 {[%emt 0:00:01]} 31. Rh2 {
[%emt 0:00:03]} axb3 {[%emt 0:00:01]} 32. axb3 {[%emt 0:00:01]} f6 {[%emt 0:00:
04]} 33. Rdh1 {[%emt 0:00:01]} Kf7 {[%emt 0:00:01]} 34. Qxe4 {[%emt 0:00:01]}
Rh8 {[%emt 0:00:04]} 35. Qd5+ {[%emt 0:00:01]} e6 {[%emt 0:00:02]} 36. Qd7+ {
[%emt 0:00:01]} Kg8 {[%emt 0:00:01]} 37. Rxh8+ {[%emt 0:00:02]} Qxh8 {[%emt 0:
00:00]} 38. Qxe6+ {[%emt 0:00:02]} Kg7 {[%emt 0:00:01]} 39. Rxh8 {[%emt 0:00:
02]} Rxh8 {[%emt 0:00:01]} 40. Qe7+ {[%emt 0:00:01]} Kh6 {[%emt 0:00:00]} 41.
Qxf6 {[%emt 0:00:01]} Re8 {[%emt 0:00:01]} 42. d5 {[%emt 0:00:02]} Kh5 {
[%emt 0:00:02]} 43. d6 {[%emt 0:00:02]} 1-0

[Event "FIDE Women World Blitz 2021"]
[Site "Warsaw"]
[Date "2021.12.30"]
[Round "12.4"]
[White "Koneru, Humpy"]
[Black "Kashlinskaya, Alina"]
[Result "1-0"]
[ECO "E93"]
[WhiteElo "2586"]
[BlackElo "2482"]
[Annotator "ChessBase"]
[PlyCount "85"]
[EventDate "2021.12.29"]
[EventType "swiss"]
[EventCountry "POL"]
[Tiebreak "Cut1 Buchholz"]
[SourceTitle "playchess.com"]
[Source "ChessBase"]
[SourceQuality "1"]
[TimeControl "180+2"]

1. d4 {[%emt 0:00:01]} Nf6 {[%emt 0:00:01]} 2. c4 {[%emt 0:00:02]} g6 {[%emt 0:
00:01]} 3. Nc3 {[%emt 0:00:07]} Bg7 {[%emt 0:00:01]} 4. e4 {[%emt 0:00:03]} d6
{[%emt 0:00:01]} 5. Be2 {[%emt 0:00:04]} O-O {[%emt 0:00:02]} 6. Be3 {[%emt 0:
00:02]} e5 {[%emt 0:00:01]} 7. d5 {[%emt 0:00:04]} Na6 {[%emt 0:00:01]} 8. Nf3
{[%emt 0:00:41]} Nc5 {[%emt 0:00:05]} 9. Nd2 {[%emt 0:00:05]} a5 {[%emt 0:00:
02]} 10. h4 {[%emt 0:00:14]} c6 {[%emt 0:00:14]} 11. h5 {[%emt 0:00:14]} a4 {
[%emt 0:00:14]} 12. h6 {[%emt 0:00:44]} Bh8 {[%emt 0:00:01]} 13. Bxc5 {[%emt 0:
00:06]} dxc5 {[%emt 0:00:01]} 14. Nxa4 {[%emt 0:00:02]} cxd5 {[%emt 0:00:18]}
15. cxd5 {[%emt 0:00:03]} Nd7 {[%emt 0:00:22]} 16. O-O {[%emt 0:00:30]} Qh4 {
[%emt 0:00:08]} 17. d6 {[%emt 0:00:11]} Nf6 {[%emt 0:00:32]} 18. Nf3 {[%emt 0:
00:05]} Qxh6 {[%emt 0:00:19]} 19. Nb6 {[%emt 0:00:01]} Rb8 {[%emt 0:00:01]} 20.
d7 {[%emt 0:00:04]} Nxd7 {[%emt 0:00:01]} 21. Nxc8 {[%emt 0:00:02]} Rfxc8 {
[%emt 0:00:50]} 22. Qxd7 {[%emt 0:00:02]} Bf6 {[%emt 0:00:01]} 23. Rad1 {
[%emt 0:00:08]} Qg7 {[%emt 0:00:01]} 24. Qb5 {[%emt 0:00:02]} g5 {[%emt 0:00:
02]} 25. Nd2 {[%emt 0:00:03]} g4 {[%emt 0:00:01]} 26. g3 {[%emt 0:00:02]} Qg6 {
[%emt 0:00:09]} 27. Qd7 {[%emt 0:00:02]} h5 {[%emt 0:00:02]} 28. Qf5 {[%emt 0:
00:02]} Qh6 {[%emt 0:00:13]} 29. Nc4 {[%emt 0:00:02]} Re8 {[%emt 0:00:00]} 30.
Kg2 {[%emt 0:00:03]} Re6 {[%emt 0:00:12]} 31. Rh1 {[%emt 0:00:02]} h4 {[%emt 0:
00:01]} 32. Qxg4+ {[%emt 0:00:02]} Kf8 {[%emt 0:00:00]} 33. Rd6 {[%emt 0:00:02]
} Ke7 {[%emt 0:00:07]} 34. Rhd1 {[%emt 0:00:04]} b5 {[%emt 0:00:02]} 35. Rd7+ {
[%emt 0:00:01]} Kf8 {[%emt 0:00:01]} 36. Ne3 {[%emt 0:00:01]} hxg3 {[%emt 0:00:
02]} 37. Qxg3 {[%emt 0:00:03]} Be7 {[%emt 0:00:01]} 38. Nf5 {[%emt 0:00:02]}
Qh7 {[%emt 0:00:01]} 39. Rxe7 {[%emt 0:00:03]} Rg6 {[%emt 0:00:01]} 40. Bg4 {
[%emt 0:00:01]} Ra8 {[%emt 0:00:05]} 41. Red7 {[%emt 0:00:01]} Ke8 {[%emt 0:00:
01]} 42. Qxe5+ {[%emt 0:00:03]} Re6 {[%emt 0:00:00]} 43. Ng7+ {[%emt 0:00:02]}
1-0

[Event "FIDE Women World Blitz 2021"]
[Site "Warsaw"]
[Date "2021.12.30"]
[Round "12.4"]
[White "Yakimova, Mariya"]
[Black "Szczotka, Klara"]
[Result "1-0"]
[ECO "E18"]
[WhiteElo "2219"]
[BlackElo "1584"]
[Annotator "NA"]
[PlyCount "78"]
[EventDate "2021.12.29"]
[EventType "swiss"]
[EventCountry "POL"]
[Tiebreak "Cut1 Buchholz"]
[SourceTitle "playchess.com"]
[Source "ChessBase"]
[SourceQuality "1"]
[TimeControl "180+2"]

1. d4 {[%emt 0:00:01]} Nf6 {[%emt 0:00:01]} 2. c4 {[%emt 0:00:01]} e6 {[%emt 0:
00:02]} 3. g3 {[%emt 0:00:02]} d5 {[%emt 0:00:02]} 4. Nf3 {[%emt 0:00:01]} b6 {
[%emt 0:00:04]} 5. cxd5 {[%emt 0:00:02]} exd5 {[%emt 0:00:01]} 6. Bg2 {[%emt 0:
00:01]} Bb7 {[%emt 0:00:01]} 7. O-O {[%emt 0:00:01]} Be7 {[%emt 0:00:01]} 8.
Nc3 {[%emt 0:00:01]} O-O {[%emt 0:00:02]} 9. Bf4 {[%emt 0:00:01]} a6 {[%emt 0:
00:07]} 10. Rc1 {[%emt 0:00:03]} Nbd7 {[%emt 0:00:03]} 11. Ne5 {[%emt 0:00:10]}
Nxe5 {[%emt 0:00:17]} 12. dxe5 {[%emt 0:00:06]} Ne4 {[%emt 0:00:01]} 13. Nxe4 {
[%emt 0:00:12]} dxe4 {[%emt 0:00:01]} 14. Qxd8 {[%emt 0:00:03]} Bxd8 {[%emt 0:
00:06]} 15. Rfd1 {[%emt 0:00:04]} Rc8 {[%emt 0:00:18]} 16. Rd7 {[%emt 0:00:13]}
Ba8 {[%emt 0:00:09]} 17. b4 {[%emt 0:00:15]} Re8 {[%emt 0:00:20]} 18. h4 {
[%emt 0:00:03]} Re7 {[%emt 0:00:08]} 19. Bh3 {[%emt 0:00:20]} Rxd7 {[%emt 0:00:
02]} 20. Bxd7 {[%emt 0:00:01]} Rb8 {[%emt 0:00:00]} 21. a3 {[%emt 0:00:01]} Kf8
{[%emt 0:00:14]} 22. Rc4 {[%emt 0:00:03]} a5 {[%emt 0:01:12]} 23. Bf5 {[%emt 0:
00:07]} g6 {[%emt 0:00:04]} 24. Bxe4 {[%emt 0:00:06]} Bxe4 {[%emt 0:00:01]} 25.
Rxe4 {[%emt 0:00:01]} axb4 {[%emt 0:00:02]} 26. axb4 {[%emt 0:00:01]} Ra8 {
[%emt 0:00:01]} 27. e6 {[%emt 0:00:35]} fxe6 {[%emt 0:00:06]} 28. Rxe6 {
[%emt 0:00:02]} Ra4 {[%emt 0:00:01]} 29. Re4 {[%emt 0:00:08]} Kf7 {[%emt 0:00:
11]} 30. f3 {[%emt 0:00:04]} c5 {[%emt 0:00:09]} 31. bxc5 {[%emt 0:00:03]} Rxe4
{[%emt 0:00:01]} 32. fxe4 {[%emt 0:00:01]} bxc5 {[%emt 0:00:01]} 33. Kf2 {
[%emt 0:00:07]} Ke6 {[%emt 0:00:01]} 34. Ke3 {[%emt 0:00:01]} Bf6 {[%emt 0:00:
02]} 35. Kd3 {[%emt 0:00:01]} Kd7 {[%emt 0:00:07]} 36. Kc4 {[%emt 0:00:17]} Kc6
{[%emt 0:00:00]} 37. Be3 {[%emt 0:00:16]} Be7 {[%emt 0:00:02]} 38. Bf2 {
[%emt 0:00:02]} Bd6 {[%emt 0:00:01]} 39. g4 {[%emt 0:00:05]} h5 {[%emt 0:00:04]
} 1-0

[Event "FIDE Women World Blitz 2021"]
[Site "Warsaw"]
[Date "2021.12.30"]
[Round "12.5"]
[White "Muzychuk, Anna"]
[Black "Injac, Teodora"]
[Result "1-0"]
[ECO "C26"]
[WhiteElo "2533"]
[BlackElo "2387"]
[Annotator "ChessBase"]
[PlyCount "61"]
[EventDate "2021.12.29"]
[EventType "swiss"]
[EventCountry "POL"]
[Tiebreak "Cut1 Buchholz"]
[SourceTitle "playchess.com"]
[Source "ChessBase"]
[SourceQuality "1"]
[TimeControl "180+2"]

1. e4 {[%emt 0:00:00]} e5 {[%emt 0:00:01]} 2. Nc3 {[%emt 0:00:01]} Nf6 {
[%emt 0:00:02]} 3. d4 {[%emt 0:00:01]} exd4 {[%emt 0:00:04]} 4. Qxd4 {[%emt 0:
00:02]} Nc6 {[%emt 0:00:02]} 5. Qd3 {[%emt 0:00:01]} Be7 {[%emt 0:00:09]} 6.
Bf4 {[%emt 0:00:04]} O-O {[%emt 0:00:10]} 7. O-O-O {[%emt 0:00:04]} d6 {
[%emt 0:00:03]} 8. f3 {[%emt 0:00:02]} Be6 {[%emt 0:00:05]} 9. g4 {[%emt 0:00:
10]} a5 {[%emt 0:00:11]} 10. Kb1 {[%emt 0:00:11]} a4 {[%emt 0:00:03]} 11. a3 {
[%emt 0:00:06]} Nd7 {[%emt 0:00:13]} 12. Qe3 {[%emt 0:00:17]} Nce5 {[%emt 0:00:
32]} 13. Nge2 {[%emt 0:00:34]} Nc4 {[%emt 0:00:22]} 14. Qc1 {[%emt 0:00:02]}
Nde5 {[%emt 0:00:25]} 15. Nd4 {[%emt 0:00:10]} c5 {[%emt 0:00:11]} 16. Nf5 {
[%emt 0:00:06]} b5 {[%emt 0:00:16]} 17. Nd5 {[%emt 0:00:18]} Bxd5 {[%emt 0:00:
07]} 18. Rxd5 {[%emt 0:00:01]} Qc7 {[%emt 0:00:08]} 19. Bxc4 {[%emt 0:00:15]}
Nxc4 {[%emt 0:00:06]} 20. Bh6 {[%emt 0:00:04]} Bf6 {[%emt 0:00:07]} 21. Bxg7 {
[%emt 0:00:17]} Bxg7 {[%emt 0:00:01]} 22. Nxg7 {[%emt 0:00:01]} Ne5 {[%emt 0:
00:20]} 23. Qh6 {[%emt 0:00:25]} Rae8 {[%emt 0:00:03]} 24. Nh5 {[%emt 0:00:03]}
f5 {[%emt 0:00:03]} 25. Nf6+ {[%emt 0:00:14]} Rxf6 {[%emt 0:00:01]} 26. Qxf6 {
[%emt 0:00:01]} fxe4 {[%emt 0:00:01]} 27. fxe4 {[%emt 0:00:01]} Nc4 {[%emt 0:
00:01]} 28. Rf1 {[%emt 0:00:05]} Ne5 {[%emt 0:00:03]} 29. Rf5 {[%emt 0:00:02]}
h6 {[%emt 0:00:02]} 30. Qxh6 {[%emt 0:00:02]} Re7 {[%emt 0:00:02]} 31. Rxd6 {
[%emt 0:00:02]} 1-0

[Event "FIDE Women World Blitz 2021"]
[Site "Warsaw"]
[Date "2021.12.30"]
[Round "12.5"]
[White "Bartel, Marta"]
[Black "Kazarian, Anna-Maja"]
[Result "0-1"]
[ECO "E12"]
[WhiteElo "2192"]
[BlackElo "2138"]
[Annotator "NA"]
[PlyCount "102"]
[EventDate "2021.12.29"]
[EventType "swiss"]
[EventCountry "POL"]
[Tiebreak "Cut1 Buchholz"]
[SourceTitle "playchess.com"]
[Source "ChessBase"]
[SourceQuality "1"]
[TimeControl "180+2"]

1. d4 {[%emt 0:00:02]} Nf6 {[%emt 0:00:01]} 2. Bg5 {[%emt 0:00:01]} e6 {
[%emt 0:00:04]} 3. Nf3 {[%emt 0:00:06]} Be7 {[%emt 0:00:02]} 4. e3 {[%emt 0:00:
02]} b6 {[%emt 0:00:02]} 5. c4 {[%emt 0:00:06]} Bb7 {[%emt 0:00:01]} 6. Nc3 {
[%emt 0:00:01]} O-O {[%emt 0:00:06]} 7. Be2 {[%emt 0:00:01]} d6 {[%emt 0:00:02]
} 8. O-O {[%emt 0:00:03]} Nbd7 {[%emt 0:00:04]} 9. Qc2 {[%emt 0:00:04]} c5 {
[%emt 0:00:04]} 10. Rad1 {[%emt 0:00:13]} cxd4 {[%emt 0:00:05]} 11. Nxd4 {
[%emt 0:00:03]} a6 {[%emt 0:00:11]} 12. Bf3 {[%emt 0:00:11]} Bxf3 {[%emt 0:00:
05]} 13. Nxf3 {[%emt 0:00:02]} Qc7 {[%emt 0:00:04]} 14. Qe2 {[%emt 0:00:04]}
Nc5 {[%emt 0:00:08]} 15. b3 {[%emt 0:00:07]} Nfe4 {[%emt 0:00:13]} 16. Nxe4 {
[%emt 0:00:07]} Nxe4 {[%emt 0:00:01]} 17. Bxe7 {[%emt 0:00:09]} Qxe7 {[%emt 0:
00:06]} 18. Rd3 {[%emt 0:00:06]} f5 {[%emt 0:00:15]} 19. Rfd1 {[%emt 0:00:02]}
Rad8 {[%emt 0:00:08]} 20. Nd4 {[%emt 0:00:10]} Qe8 {[%emt 0:00:37]} 21. Nc2 {
[%emt 0:00:31]} Qe7 {[%emt 0:00:59]} 22. Nb4 {[%emt 0:00:25]} Qf6 {[%emt 0:00:
10]} 23. Qc2 {[%emt 0:00:19]} a5 {[%emt 0:00:01]} 24. Nc6 {[%emt 0:00:06]} Rc8
{[%emt 0:00:01]} 25. Nd4 {[%emt 0:00:01]} d5 {[%emt 0:00:09]} 26. Nb5 {[%emt 0:
00:23]} Rc5 {[%emt 0:00:07]} 27. f3 {[%emt 0:00:04]} Ng5 {[%emt 0:00:02]} 28.
Na3 {[%emt 0:00:19]} Nf7 {[%emt 0:00:02]} 29. Qd2 {[%emt 0:00:02]} Ne5 {
[%emt 0:00:01]} 30. Rd4 {[%emt 0:00:02]} Nc6 {[%emt 0:00:01]} 31. Rd3 {[%emt 0:
00:02]} Nb4 {[%emt 0:00:01]} 32. Rd4 {[%emt 0:00:03]} e5 {[%emt 0:00:01]} 33.
Rxd5 {[%emt 0:00:07]} Nxd5 {[%emt 0:00:01]} 34. cxd5 {[%emt 0:00:01]} e4 {
[%emt 0:00:07]} 35. Nc4 {[%emt 0:00:02]} exf3 {[%emt 0:00:02]} 36. gxf3 {
[%emt 0:00:01]} Rd8 {[%emt 0:00:02]} 37. d6 {[%emt 0:00:01]} a4 {[%emt 0:00:04]
} 38. Qd3 {[%emt 0:00:05]} axb3 {[%emt 0:00:01]} 39. axb3 {[%emt 0:00:01]} b5 {
[%emt 0:00:01]} 40. Nb6 {[%emt 0:00:02]} Rc6 {[%emt 0:00:03]} 41. Nd5 {[%emt 0:
00:02]} Qg5+ {[%emt 0:00:00]} 42. Kh1 {[%emt 0:00:00]} Rcxd6 {[%emt 0:00:00]}
43. Qxb5 {[%emt 0:00:00]} h6 {[%emt 0:00:00]} 44. Rd4 {[%emt 0:00:01]} f4 {
[%emt 0:00:00]} 45. e4 {[%emt 0:00:02]} Rg6 {[%emt 0:00:00]} 46. Qf1 {[%emt 0:
00:02]} Rc8 {[%emt 0:00:00]} 47. Rd1 {[%emt 0:00:06]} Rc2 {[%emt 0:00:00]} 48.
b4 {[%emt 0:00:04]} Qh4 {[%emt 0:00:00]} 49. h3 {[%emt 0:00:04]} Qg3 {[%emt 0:
00:02]} 50. Ne7+ {[%emt 0:00:02]} Kh7 {[%emt 0:00:02]} 51. Nxg6 {[%emt 0:00:01]
} Qh2# {[%emt 0:00:01]} 0-1

[Event "FIDE Women World Blitz 2021"]
[Site "Warsaw"]
[Date "2021.12.30"]
[Round "12.6"]
[White "Goryachkina, Aleksandra"]
[Black "Babiy, Olga"]
[Result "1/2-1/2"]
[ECO "D27"]
[WhiteElo "2604"]
[BlackElo "2179"]
[Annotator "ChessBase"]
[PlyCount "89"]
[EventDate "2021.12.29"]
[EventType "swiss"]
[EventCountry "POL"]
[Tiebreak "Cut1 Buchholz"]
[SourceTitle "playchess.com"]
[Source "ChessBase"]
[SourceQuality "1"]
[TimeControl "180+2"]

1. d4 {[%emt 0:00:01]} d5 {[%emt 0:00:01]} 2. c4 {[%emt 0:00:02]} dxc4 {
[%emt 0:00:01]} 3. e3 {[%emt 0:00:02]} Nf6 {[%emt 0:00:01]} 4. Bxc4 {[%emt 0:
00:02]} e6 {[%emt 0:00:01]} 5. Nf3 {[%emt 0:00:02]} a6 {[%emt 0:00:00]} 6. O-O
{[%emt 0:00:03]} c5 {[%emt 0:00:01]} 7. dxc5 {[%emt 0:00:04]} Bxc5 {[%emt 0:00:
03]} 8. Qxd8+ {[%emt 0:00:03]} Kxd8 {[%emt 0:00:01]} 9. Nbd2 {[%emt 0:00:02]}
Ke7 {[%emt 0:00:18]} 10. Be2 {[%emt 0:00:02]} Bd7 {[%emt 0:00:13]} 11. Nc4 {
[%emt 0:00:06]} Bb5 {[%emt 0:00:08]} 12. b3 {[%emt 0:00:02]} Nbd7 {[%emt 0:00:
03]} 13. Bb2 {[%emt 0:00:19]} Rhc8 {[%emt 0:00:15]} 14. Rac1 {[%emt 0:00:03]}
g6 {[%emt 0:00:15]} 15. Rfd1 {[%emt 0:00:04]} Nd5 {[%emt 0:00:24]} 16. Kf1 {
[%emt 0:00:07]} f5 {[%emt 0:00:07]} 17. a4 {[%emt 0:00:11]} Bxc4 {[%emt 0:00:
03]} 18. Bxc4 {[%emt 0:00:02]} N7b6 {[%emt 0:00:13]} 19. Be2 {[%emt 0:00:04]}
Bd6 {[%emt 0:00:02]} 20. Ne5 {[%emt 0:00:15]} Rxc1 {[%emt 0:00:16]} 21. Rxc1 {
[%emt 0:00:01]} Rc8 {[%emt 0:00:01]} 22. Rxc8 {[%emt 0:00:11]} Nxc8 {[%emt 0:
00:01]} 23. Nc4 {[%emt 0:00:01]} Bb4 {[%emt 0:00:06]} 24. Bf3 {[%emt 0:00:07]}
b5 {[%emt 0:00:45]} 25. axb5 {[%emt 0:00:06]} axb5 {[%emt 0:00:01]} 26. Bxd5 {
[%emt 0:00:06]} exd5 {[%emt 0:00:01]} 27. Ne5 {[%emt 0:00:02]} Ke6 {[%emt 0:00:
13]} 28. Nd3 {[%emt 0:00:02]} Bd6 {[%emt 0:00:06]} 29. Ke2 {[%emt 0:00:04]} Ne7
{[%emt 0:00:01]} 30. h3 {[%emt 0:00:16]} Nc6 {[%emt 0:00:02]} 31. Kd2 {[%emt 0:
00:03]} Be7 {[%emt 0:00:02]} 32. Nf4+ {[%emt 0:00:05]} Kd6 {[%emt 0:00:03]} 33.
Ba3+ {[%emt 0:00:01]} Ke5 {[%emt 0:00:02]} 34. Bxe7 {[%emt 0:00:04]} Nxe7 {
[%emt 0:00:01]} 35. Kc3 {[%emt 0:00:01]} d4+ {[%emt 0:00:05]} 36. Kd3 {[%emt 0:
00:54]} dxe3 {[%emt 0:00:01]} 37. Kxe3 {[%emt 0:00:05]} Nd5+ {[%emt 0:00:03]}
38. Nxd5 {[%emt 0:00:02]} Kxd5 {[%emt 0:00:01]} 39. Kd3 {[%emt 0:00:01]} Kc5 {
[%emt 0:00:10]} 40. Kc3 {[%emt 0:00:01]} b4+ {[%emt 0:00:03]} 41. Kd3 {[%emt 0:
00:01]} Kd5 {[%emt 0:00:01]} 42. f4 {[%emt 0:00:14]} h5 {[%emt 0:00:04]} 43.
Ke3 {[%emt 0:00:05]} Kc5 {[%emt 0:00:01]} 44. h4 {[%emt 0:00:07]} Kd5 {[%emt 0:
00:00]} 45. Kd3 {[%emt 0:00:02]} 1/2-1/2

[Event "FIDE Women World Blitz 2021"]
[Site "Warsaw"]
[Date "2021.12.30"]
[Round "12.6"]
[White "Kucharska, Honorata"]
[Black "Jakubowska, Anna"]
[Result "0-1"]
[ECO "B11"]
[WhiteElo "2168"]
[BlackElo "2106"]
[Annotator "NA"]
[PlyCount "90"]
[EventDate "2021.12.29"]
[EventType "swiss"]
[EventCountry "POL"]
[Tiebreak "Cut1 Buchholz"]
[SourceTitle "playchess.com"]
[Source "ChessBase"]
[SourceQuality "1"]
[TimeControl "180+2"]

1. e4 {[%emt 0:00:01]} c6 {[%emt 0:00:01]} 2. Nf3 {[%emt 0:00:03]} d5 {[%emt 0:
00:01]} 3. Nc3 {[%emt 0:00:00]} dxe4 {[%emt 0:00:01]} 4. Nxe4 {[%emt 0:00:02]}
Nf6 {[%emt 0:00:02]} 5. Nc3 {[%emt 0:00:08]} Bg4 {[%emt 0:00:03]} 6. h3 {
[%emt 0:00:02]} Bxf3 {[%emt 0:00:02]} 7. Qxf3 {[%emt 0:00:02]} e6 {[%emt 0:00:
01]} 8. g3 {[%emt 0:00:01]} Be7 {[%emt 0:00:06]} 9. Bg2 {[%emt 0:00:01]} O-O {
[%emt 0:00:02]} 10. O-O {[%emt 0:00:02]} Nbd7 {[%emt 0:00:05]} 11. d4 {[%emt 0:
00:04]} Nb6 {[%emt 0:00:02]} 12. Rd1 {[%emt 0:00:02]} Nfd5 {[%emt 0:00:05]} 13.
Ne4 {[%emt 0:00:12]} Nf6 {[%emt 0:00:15]} 14. b3 {[%emt 0:00:15]} Nxe4 {
[%emt 0:00:19]} 15. Qxe4 {[%emt 0:00:01]} Bf6 {[%emt 0:00:01]} 16. Bb2 {
[%emt 0:00:02]} Qd5 {[%emt 0:00:18]} 17. Qe2 {[%emt 0:00:02]} Qf5 {[%emt 0:00:
07]} 18. c4 {[%emt 0:00:05]} Rad8 {[%emt 0:00:04]} 19. Kh2 {[%emt 0:00:10]} g6
{[%emt 0:00:13]} 20. Be4 {[%emt 0:00:12]} Qg5 {[%emt 0:00:07]} 21. Bc1 {
[%emt 0:00:23]} Qa5 {[%emt 0:00:03]} 22. Bd2 {[%emt 0:00:07]} Qa3 {[%emt 0:00:
04]} 23. Be3 {[%emt 0:00:06]} c5 {[%emt 0:00:09]} 24. dxc5 {[%emt 0:00:07]}
Bxa1 {[%emt 0:00:04]} 25. Rxa1 {[%emt 0:00:03]} Nd7 {[%emt 0:00:05]} 26. Bxb7 {
[%emt 0:00:06]} Nxc5 {[%emt 0:00:03]} 27. Bg2 {[%emt 0:00:09]} Nxb3 {[%emt 0:
00:08]} 28. Rf1 {[%emt 0:00:36]} Nd4 {[%emt 0:00:03]} 29. Qg4 {[%emt 0:00:03]}
Nf5 {[%emt 0:00:13]} 30. Bg5 {[%emt 0:00:02]} Rd4 {[%emt 0:00:04]} 31. Qe2 {
[%emt 0:00:05]} Qd6 {[%emt 0:00:31]} 32. Bf6 {[%emt 0:00:11]} Rd2 {[%emt 0:00:
01]} 33. Qe4 {[%emt 0:00:09]} Qd3 {[%emt 0:00:15]} 34. Qc6 {[%emt 0:00:07]}
Nxg3 {[%emt 0:00:09]} 35. fxg3 {[%emt 0:00:22]} Qxf1 {[%emt 0:00:01]} 36. Qe4 {
[%emt 0:00:02]} Rxa2 {[%emt 0:00:10]} 37. c5 {[%emt 0:00:01]} Rc8 {[%emt 0:00:
04]} 38. Bd4 {[%emt 0:00:03]} Qxg2+ {[%emt 0:00:05]} 39. Qxg2 {[%emt 0:00:01]}
Rxg2+ {[%emt 0:00:01]} 40. Kxg2 {[%emt 0:00:01]} a5 {[%emt 0:00:00]} 41. Kf3 {
[%emt 0:00:01]} f6 {[%emt 0:00:01]} 42. Ke4 {[%emt 0:00:01]} e5 {[%emt 0:00:01]
} 43. Be3 {[%emt 0:00:01]} a4 {[%emt 0:00:01]} 44. Kd3 {[%emt 0:00:05]} a3 {
[%emt 0:00:00]} 45. Kc2 {[%emt 0:00:01]} Rb8 {[%emt 0:00:01]} 0-1